Cogmind - Beta 13 @@@ ROGUE MODE // 2024.03.30 @ 20:36:37 Player: wonder Result: Destroyed by Y-45 Defender with Heavy Assault Rifle Performance ------------- Evolutions (1) 500 Regions Visited (3) 600 Robots Destroyed (26) 130 Value Destroyed (533) 533 Prototype IDs (2) 40 Alien Tech Used (0) 0 Bonus (0) 0 TOTAL SCORE: 1803 Bonus ------- None Cogmind --------- Core Integrity 0/400 Matter 362/450 Energy 207/275 System Corruption 1% Temperature Cool (1) Movement Flying (275) Ox3 Location -9/Storage Parts ------- > --- POWER (2) -------- Deuterium Engine > --- PROPULSION (2) --- VTOL Module > --- UTILITY (3) ------ Large Matter Pod Signal Interpreter Improved Terrain Scanner > --- WEAPON (2) ------- (None) > --- INVENTORY (5) ---- (None) Peak State ------------ > --- POWER ------------ Deuterium Engine Deuterium Engine > --- PROPULSION ------- Backup Propulsion I Backup Propulsion I > --- UTILITY ---------- Large Matter Pod Signal Interpreter Improved Terrain Scanner > --- WEAPON ----------- Pulse Rifle Assault Rifle > --- INVENTORY -------- Deuterium Engine [Rating: 17] Favorites ----------- Power Deuterium Engine Engine Deuterium Engine Propulsion Backup Propulsion I Treads Light Treads Leg Aluminum Leg Wheel Wheel Hover Unit Backup Propulsion I Flight Unit VTOL Module Utility Improved Terrain Scanner Device Improved Terrain Scanner Storage Large Matter Pod Processor Signal Interpreter Weapon Assault Rifle Energy Gun Small Laser Ballistic Gun Assault Rifle Launcher Grenade Launcher Special Weapon Mining Laser Impact Weapon Maul Build | -11 -10 -9 -9 ------- Run | Yrd Mat Mat Sto Slots Evolved 2 | . . 2 . Power 1 | . . 1 . Propulsion . | . . . . Utility 1 | . . 1 . Weapon . | . . . . Parts Attached 44 | 10 18 10 6 Power 11 | . 4 5 2 Engine 11 | . 4 5 2 Core . | . . . . Reactor . | . . . . Propulsion 13 | 5 3 2 3 Treads 2 | . . . 2 Leg 1 | 1 . . . Wheel 4 | 4 . . . Hover 3 | . 2 1 . Flight 3 | . 1 1 1 Utility 8 | 2 4 2 . Device 4 | 1 1 2 . Storage 3 | 1 2 . . Processor 1 | . 1 . . Hackware . | . . . . Protection . | . . . . Artifact . | . . . . Weapon 12 | 3 7 1 1 Energy Gun 5 | 2 2 1 . Energy Cannon . | . . . . Ballistic Gun 2 | . 2 . . Ballistic Cannon . | . . . . Launcher 1 | . 1 . . Special Weapon 3 | 1 2 . . Impact Weapon 1 | . . . 1 Slashing Weapon . | . . . . Piercing Weapon . | . . . . Special Melee Weapon . | . . . . Unidentified Prototypes . | . . . . Parts Lost 11 | . 3 1 7 Power 3 | . . 1 2 Propulsion 5 | . 2 . 3 Utility . | . . . . Weapon 3 | . 1 . 2 Highest Loss Streak 6 | . 2 1 6 To Critical Strikes 1 | . . . 1 Average Slot Usage (%) 81 | . 70 90 90 Engine 12 | . 6 15 19 Treads 3 | . . . 12 Wheel 2 | . 4 . . Hover 10 | . 8 20 5 Device 10 | . 10 9 11 Storage 12 | . 14 11 11 Processor 7 | . 3 11 11 Energy Gun 10 | . 10 11 9 Ballistic Gun 6 | . 6 11 4 Special Weapon 1 | . 3 . . Impact Weapon 1 | . . . 5 Naked Turns . | . . . . Heaviest Build 27 | 5 11 27 27 Greatest Support 40 | 20 20 12 40 Greatest Overweight (x) 4 | . 3 4 4 Average Overweight (x) . | . . 1 . Largest Inventory Capacity 5 | 5 5 5 5 Average Capacity 5 | 5 5 5 5 Most Carried 5 | 5 5 5 4 Average Carried 3 | 3 4 2 2 Final Capacity 5 | 5 5 5 5 Final Carried 5 | 5 4 2 . Class Distribution -------------------- 66% | Mutant 33% | Scavenger-Mutant Dominant Class ---------------- Mutant | -10/Materials Mutant | -9/Materials Scavenger-Mutant | -9/Storage Resources | -11 -10 -9 -9 ----------- Run | Yrd Mat Mat Sto Matter Collected 802 | 400 253 87 62 Remotely 75 | . 75 . . Salvage Created 649 | 111 256 87 195 Parts 44 | 12 25 3 4 Haulers Intercepted . | . . . . Recyclers Shooed . | . . . . Parts Field Recycled . | . . . . Retrieved Matter . | . . . . Parts Self-Destructed . | . . . . Prevented . | . . . . Kills | -11 -10 -9 -9 ------- Run | Yrd Mat Mat Sto Combat Hostiles Destroyed 19 | 1 11 2 5 Melee 1 | . . . 1 Guns 11 | 1 6 2 2 AOE 5 | . 5 . . Classes Destroyed 6 | 3 2 1 . Worker 2 | 1 1 . . Builder 3 | . 2 . 1 Tunneler 2 | 2 . . . Swarmer 8 | . 6 . 2 Grunt 9 | 1 5 1 2 Sentry 2 | . . 1 1 Best Kill Streak 8 | 3 8 1 4 Combat Bots Only 5 | 1 5 1 2 Max Kills in Single Turn 4 | 1 4 1 1 Gunslinging . | . . . . Exploded 3 | . 3 . . Melee 1 | . . . 1 Uniques/NPCs Destroyed . | . . . . Combat | -11 -10 -9 -9 -------- Run | Yrd Mat Mat Sto Hostile Shots Fired 176 | 11 37 14 114 Missed 47 | 3 13 5 26 Damage Taken 1650 | 90 356 196 1008 Core 565 | 10 155 65 335 Absorbed by Shields . | . . . . Core Remaining (%) 65 | 96 34 . . Volleys Fired 59 | 10 30 10 9 Largest 2 | 2 2 2 2 Hottest 100 | 80 100 83 83 Shots Fired 84 | 15 36 19 14 Gun 72 | 15 24 19 14 Cannon . | . . . . Launcher 8 | . 8 . . Special 4 | . 4 . . Kinetic 25 | . 6 10 9 Thermal 45 | 9 22 9 5 Explosive 8 | . 8 . . Electromagnetic 6 | 6 . . . Robot Hit Streak 9 | 5 8 9 4 Robot Miss Streak 5 | 2 3 3 5 Penetration Max . | . . . . Secondary Targets 1 | . 1 . . Max Gunslinging Chain 1 | . 1 . . Shots Hit Robots 53 | 11 18 12 12 Core Hits 29 | 5 18 3 3 Critical Kills . | . . . . Critical Parts Destroyed 1 | . . . 1 Critical Strikes 1 | . . . 1 Smash 1 | . . . 1 Melee Attacks 10 | . . . 10 Impact 10 | . . . 10 Slashing . | . . . . Piercing . | . . . . Sneak Attacks 1 | . . . 1 Combat Hostiles . | . . . . Follow-up Attacks . | . . . . Damage Inflicted 1374 | 243 577 198 356 Guns 612 | 136 176 195 105 Cannons . | . . . . Explosions 508 | 107 401 . . Melee 251 | . . . 251 Ramming 3 | . . 3 . Kinetic 139 | . 27 75 37 Thermal 535 | 198 149 120 68 Explosive 401 | . 401 . . Electromagnetic 45 | 45 . . . Impact 251 | . . . 251 Slashing . | . . . . Piercing . | . . . . Highest Corruption 1 | . . . 1 Average Corruption 1 | . . . 1 Corruption Purged . | . . . . Corruption Blocked . | . . . . Effects 1 | . . . 1 Message Errors 1 | . . . 1 Overload Shots . | . . . . Overflow Damage 155 | 2 22 . 131 Projectiles . | . . . . Explosions 24 | 2 22 . . Melee 131 | . . . 131 Knockbacks 2 | . . . 2 Impact 2 | . . . 2 Kinetic . | . . . . Secondary . | . . . . Self-Inflicted Damage 148 | . 147 1 . Shots 5 | . 5 . . Rammed 1 | . . 1 . Targets Rammed 1 | . . 1 . Kicked . | . . . . Crushed . | . . . . Highest Temperature 144 | 42 42 123 144 Average Temperature 45 | 20 20 47 78 Received Heat Transfer 396 | 48 54 42 252 Siege Activations . | . . . . Robots Corrupted . | . . . . Combat Hostiles . | . . . . Parts Fried 4 | . . . 4 Impact Corruptions 7 | . . . 7 Robots Melted . | . . . . Combat Hostiles . | . . . . Parts Melted 1 | . . . 1 Heat Transferred 1107 | 350 350 259 148 Parts Sabotaged . | . . . . Parts Stolen . | . . . . Parts Stripped . | . . . . Power Chain Reactions 1 | 1 . . . Alert | -11 -10 -9 -9 ------- Run | Yrd Mat Mat Sto Peak Influence 326 | 35 326 155 253 Initial 85 | . 22 85 65 Average 145 | 13 198 110 144 Maximum Alert Level 1 | . 1 . 1 Low Security (%) 69 | 100 42 100 75 Level 1 30 | . 57 . 24 Level 2 . | . . . . Level 3 . | . . . . Level 4 . | . . . . Level 5 . | . . . . High Security . | . . . . Max Security . | . . . . Squads Dispatched 5 | . 3 . 2 Investigation 5 | . 3 . 2 Extermination . | . . . . Reinforcement . | . . . . Assault . | . . . . Garrison . | . . . . Intercept . | . . . . Searches Triggered . | . . . . Construction Impeded . | . . . . Haulers Reinforced . | . . . . Active Scanning Responses . | . . . . Cargo Convoy Interrupts . | . . . . Stealth | -11 -10 -9 -9 --------- Run | Yrd Mat Mat Sto Distress Signals 3 | . 1 1 1 Communications Jammed . | . . . . Distress Signals . | . . . . Times Spotted 29 | 1 13 3 12 Peak Tracking Total 8 | 1 4 3 8 Tactical Retreats 2 | . 1 . 1 Traps | -11 -10 -9 -9 ------- Run | Yrd Mat Mat Sto Traps Triggered 1 | . . 1 . Indirectly . | . . . . Trap Hack Attempts . | . . . . Triggered . | . . . . Disarmed . | . . . . Reprogrammed . | . . . . Reused . | . . . . Traps Extracted . | . . . . Installed . | . . . . Triggered . | . . . . Machines | -11 -10 -9 -9 ---------- Run | Yrd Mat Mat Sto Machines Disabled . | . . . . Max in Single Turn . | . . . . Machines Repaired . | . . . . Machines Dismantled . | . . . . Machines Sabotaged . | . . . . Overloaded Fab Kills . | . . . . Hacking | -11 -10 -9 -9 --------- Run | Yrd Mat Mat Sto Machines Accessed 10 | . 7 . 3 Terminals 7 | . 5 . 2 Fabricators . | . . . . Repair Stations 1 | . 1 . . Recycling Units 2 | . 1 . 1 Scanalyzers . | . . . . Garrison Access . | . . . . Total Hacks 39 | . 27 . 12 Successful 26 | . 17 . 9 Failed 13 | . 10 . 3 Catastrophic 2 | . 1 . 1 Database Lockouts . | . . . . Manual . | . . . . Terminals 27 | . 21 . 6 Fabricators . | . . . . Repair Stations 3 | . 3 . . Recycling Units 9 | . 3 . 6 Scanalyzers . | . . . . Garrison Access . | . . . . Terminal Hacks 17 | . 13 . 4 Record 6 | . 5 . 1 Part Schematic 2 | . . . 2 Prototype ID Bank 1 | . 1 . . Alert Level 2 | . 2 . . Locate Traps 1 | . 1 . . Transport Status 1 | . 1 . . Reinforcement Status 1 | . 1 . . Recall Reinforcements 1 | . . . 1 Registered Components 1 | . 1 . . Zone Layout 1 | . 1 . . Fabricator Hacks . | . . . . Repair Station Hacks 1 | . 1 . . Refit 1 | . 1 . . Recycling Unit Hacks 8 | . 3 . 5 Recycle Component 4 | . 2 . 2 Process 2 | . 1 . 1 Report Inventory 1 | . . . 1 Retrieve Components 1 | . . . 1 Scanalyzer . | . . . . Garrison Access Hacks . | . . . . Unauthorized Hacks . | . . . . Terminals . | . . . . Fabricators . | . . . . Repair Stations . | . . . . Recycling Units . | . . . . Scanalyzers . | . . . . Garrison Access . | . . . . Data Cores Recovered . | . . . . Used . | . . . . Hacking Detections 7 | . 4 . 3 Full Trace Events 7 | . 4 . 3 Feedback Events 1 | . . . 1 Corruption 1 | . . . 1 Feedback Blocked . | . . . . Robot Schematics Acquired . | . . . . Robots Built . | . . . . Authchips . | . . . . Time . | . . . . Total Robot Build Rating . | . . . . Part Schematics Acquired 2 | . . . 2 Parts Built . | . . . . Authchips . | . . . . Time . | . . . . Total Part Build Rating . | . . . . Parts Repaired . | . . . . Time . | . . . . Parts Recycled 4 | . 2 . 2 Recycled Matter 17 | . 17 . . Retrieved Matter . | . . . . Retrieved Components 3 | . . . 3 Parts Scanalyzed . | . . . . Part Schematics Acquired . | . . . . Parts Damaged . | . . . . Bothacking | -11 -10 -9 -9 ------------ Run | Yrd Mat Mat Sto Used RIF Installer . | . . . . Robots Hacked . | . . . . Non-combat . | . . . . Combat . | . . . . Robot Hacks Applied . | . . . . Relay Couplers Released . | . . . . Fabnet Peak Effective % . | . . . . Robots Rewired . | . . . . Allies Hacked . | . . . . Hacks Repelled . | . . . . Allies | -11 -10 -9 -9 -------- Run | Yrd Mat Mat Sto Total Allies . | . . . . Largest Group . | . . . . Highest-Rated Group . | . . . . Highest-Rated Ally . | . . . . Total Orders . | . . . . Ally Attacks . | . . . . Total Damage . | . . . . Kills . | . . . . Allies Corrupted . | . . . . Allies Melted . | . . . . Intel | -11 -10 -9 -9 ------- Run | Yrd Mat Mat Sto Robot Analysis Total . | . . . . Derelict Logs Recovered . | . . . . Drone Launches . | . . . . Drone Recoveries . | . . . . Exploration | -11 -10 -9 -9 ------------- Run | Yrd Mat Mat Sto Turns Passed 1110 | 125 467 229 289 Spaces Moved 731 | 99 405 103 124 Core 152 | 16 130 . 6 Treads 88 | . . . 88 Legs . | . . . . Wheels 155 | 83 72 . . Hover 319 | . 200 94 25 Flight 17 | . 3 9 5 Fastest Speed 50 | 50 50 76 100 Average Speed 113 | 75 86 174 182 Slowest Speed 400 | 80 200 355 400 Overloaded Moves . | . . . . Propulsion Burnouts . | . . . . Robots Hopped . | . . . . Cave-ins Triggered . | . . . . Exploration Rate (%) 25 | 6 61 10 26 Regions Visited 3 Branch Regions 1 Pre-discovered Areas . | . . . . Known Exits Taken 2 | . 1 1 . Unknown Exits Taken 1 | 1 . . . Scrap Searched . | . . . . Spaces Dug 13 | . 10 . 3 Terrain Destroyed 58 | . 55 . 3 Melee 3 | . . . 3 Projectile 4 | . 4 . . AOE 51 | . 51 . . Terrain Rammed . | . . . . Walls Destroyed . | . . . . Machines Disabled . | . . . . Actions | -11 -10 -9 -9 --------- Run | Yrd Mat Mat Sto Total 902 | 135 479 134 154 Wait 1 | 1 . . . Move 728 | 98 404 102 124 Hop . | . . . . Pick Up 36 | 12 14 6 4 Fast Attach 1 | 1 . . . Attach 20 | 6 6 5 3 Detach 3 | 1 2 . . Swap 23 | 3 12 5 3 Drop 20 | 3 11 5 1 Fire 59 | 10 30 10 9 Melee 10 | . . . 10 Ram 1 | . . 1 . Kick . | . . . . Crush . | . . . . Escape Stasis . | . . . . Rewire . | . . . . Trap . | . . . . Miscellaneous . | . . . . Route ------- -11/Scrapyard -10/Materials -9/Materials -9/Storage History --------- Turn | Location | Event 2 | -11/Scrapyard | Met Revision 17 59 | -11/Scrapyard | Discovered new exit (range 8) 126 | -11/Scrapyard | Entered Materials 356 | -10/Materials | Core integrity fell below 50% 525 | -10/Materials | Build established: Mutant 557 | -10/Materials | Discovered new exit (range 14) 591 | -10/Materials | Identified exit to Materials 593 | -10/Materials | Entered another Materials area 593 | -9/Materials | Evolved 2 slots: Power x1, Utility x1 602 | -9/Materials | Discovered new exit (range 16) 662 | -9/Materials | Identified exit to Storage 822 | -9/Materials | Entered Storage 1074 | -9/Storage | Core integrity fell below 50% 1099 | -9/Storage | Core integrity fell below 20% 1111 | -9/Storage | Destroyed by Y-45 Defender with Heavy Assault Rifle Last Messages --------------- K-01 Serf collects debris. Y-45 Defender misfires. Transport Mainframe disabled. K-01 Serf collects debris. Critical hit (Destroy). Maul destroyed. K-01 Serf collects debris. Connecting with Terminal... >>Recall(Reinforcements) Establishing remote squad link... No tasked reinforcement squads found. ALERT: Suspicious activity at Terminal S014. Dispatching Investigation squad. K-01 Serf collects debris. The unstable cave ceiling collapses. K-01 Serf collects debris. Lgt. Treads destroyed. Imp. Ion Engine destroyed. Terminal unresponsive. [Achievement: First Step to Greatness] Map ----- +----------------------------------------------------+ | ??????????????? ???#####???????????## """ """ ###? | | ?????????????????? + #???????????# """ """ ##?? | | ???????????????????# #????????#?### #?## | | ????????????????#?## ##################+##"##### | | ????????????????#?# | | ????????????#?????# #################### | | ??????????????????# ##???#???????#??#??# | | ?????????????????##/#######??????#?????########### | | ?????????#??????## ####????????????????##?# | | ?????????????????# """" #????????#??#??????????? | | ??????????#??????# "??" #?#??????#??????##?????? | | ?????????????#???# "? " #?#?#??????????????????? | | ?????????????????# "??" ##??#?#???????????#????? | | ?????????????????# "??" #??????#??##????????#??? | | ?????????????????# """" #????" ????????????????? | | ??????????????#?## #? ?????????##?#???#??#? | | ???????????+?#?#?# #??#???????##???#??????? | | ????????? ########+##########+#####??????????? | | ????????# % ?????????? | | ????????# ! %* ??????? ?? | | ????????# %= %% % ?????????? | | ????????# ########;####### ?????????? | | ????????## ????# ##?#?? ??????????? | | ???????????????# """Y##?#???? ??????????? | | ?????????? ??#?# """" T##??????? ???????????? | | ??????????? ???# """"@###? ??? ??????????????? | | ???????????????# """"s#?????????? ? ?????????? | | ???????????? ??# YY #??????????????????????? | | ???????????????########## #??????"???? ??????????? | | ????????????????????????###??"???????????????????? | | ??????????????????????????????? ?????????????????? | | ??????????????????????#?#????????????????????????? | | ???????????????????????#??????? ?????????????????? | | ??????????????????????##??#??????????????????????? | | ??????????????????????????????? ?????????????????? | | ???????????????????????????#?????????????????????? | | ??????????????????????????????????#??????????????? | | ?????????????????????????????????????????????????? | | ??????????????????????????????"??????????????????? | | ?????????????????????????????????????????????????? | | ?????????????????????????????????????????????????? | | ?????????????????????????????????????????????????? | | ?????????????????????????????????????????????????? | | ?????????????????????????????????????????????????? | | ?????????????????????????????????????????????????? | | ?????????????????????????????????????????????????? | | ?????????????????????????????????????????????????? | | ?????????????????????????????????????????????????? | | ?????????????????????????????????????????????????? | | ?????????????????????????????????????????????????? | +----------------------------------------------------+ Best States ------------- Heat Dissipation 28 Energy Generation 23 Energy Capacity 450 Matter Stores 400 Matter Capacity 450 Sight Range 16 Terrain Scan Range 16 Terrain Scan Density 10 Evasion (%) 53 Recoil Reduction 2 Item Schematics ----------------- Rocket Launcher | -9/Storage | Hacked Cooling System | -9/Storage | Hacked Robot Schematics ------------------ None Fabricated ------------ Nothing Alien Tech Used ----------------- None Achievements -------------- First Step to Greatness One Hack Too Far Storm Trooper Challenges ------------ None Game ------ Seed LinkedGuidanceClaws Manual? 0 Play Time 00:51:55 Cumulative 0.8 hours Start 2024.03.30 @ 17:17:55 End 2024.03.30 @ 20:36:37 Sessions 1 Manual Loads 0 Difficulty Rogue Special Mode None Game No. 1 Rogue 1 Adventurer 0 Explorer 0 Win Type - Total 0 Types 0/0/0/0/0/0/0/0/0 Lore% 0 Gallery% 2 Achievement% 1 Wizard Run 0 Options --------- Layout 1 ASCII 0 Keyboard 0 Movement Mouse Keybinds 0 Fullscreen 2 Font 32/SmallcapsGlow Map View 50x35 Zoom Use 0% Tactical HUD 0 Map Filters NONE Filters NONE Steam 1 RUN: 290169fd-775f-4639-a8d2-ca7ea3a2dca3